[Event "Botvinnik Cup 2018"]
[Site "Moscow"]
[Date "2018.08.12"]
[Round "5"]
[White "Garifullina, Leya"]
[Black "Vaganian, Rafael A"]
[Result "1/2-1/2"]
[ECO "C16"]
[WhiteElo "2106"]
[BlackElo "2546"]
[Annotator "ChessBase"]
[PlyCount "135"]
[EventDate "2018.08.10"]
[EventCountry "RUS"]
[SourceTitle "playchess.com"]
[Source "ChessBase"]
[SourceQuality "1"]
[TimeControl "5400+30"]

1. e4 {[%emt 0:00:00]} e6 {[%emt 0:00:00]} 2. d4 {[%emt 0:00:00]} d5 {[%emt 0:00:13]} 3. Nc3 {[%emt 0:00:25]} Bb4 {[%emt 0:00:11]} 4. e5 {[%emt 0:00:32]} Qd7 {[%emt 0:00:12]} 5. Qg4 {[%emt 0:01:31]} Bf8 {[%emt 0:00:24]} 6. Bg5 {[%emt 0:01:45]} b6 {[%emt 0:00:18]} 7. Nf3 {[%emt 0:02:41]} Ba6 {[%emt 0:00:29]} 8. Bxa6 {[%emt 0:02:47]} Nxa6 {[%emt 0:00:03]} 9. O-O-O {[%emt 0:04:40]} h6 {[%emt 0:01:37]} 10. Be3 {[%emt 0:00:53]} Ne7 {[%emt 0:00:11]} 11. Nh4 {[%emt 0:04:29]} O-O-O {[%emt 0:01:19]} 12. f4 {[%emt 0:01:16]} Kb7 {[%emt 0:05:57]} 13. Qe2 {[%emt 0:12:10]} h5 {[%emt 0:02:12]} 14. h3 {[%emt 0:05:33]} Nf5 {[%emt 0:04:37]} 15. Nxf5 {[%emt 0:03:51]} exf5 {[%emt 0:00:03]} 16. a3 {[%emt 0:06:32]} c6 {[%emt 0:00:49]} 17. Kb1 {[%emt 0:01:43]} Nc7 {[%emt 0:06:50]} 18. Rd2 {[%emt 0:02:02]} h4 {[%emt 0:00:17]} 19. Rhd1 {[%emt 0:00:41]} Ne6 {[%emt 0:02:29]} 20. Rd3 {[%emt 0:02:25]} Be7 {[%emt 0:00:48]} 21. Qf3 {[%emt 0:01:14]} b5 {[%emt 0:02:50]} 22. Ne2 {[%emt 0:10:05]} Ka8 {[%emt 0:01:35]} 23. Nc1 {[%emt 0:01:36]} a5 {[%emt 0:00:09]} 24. Qf1 {[%emt 0:02:22]} Rb8 {[%emt 0:00:42]} 25. Qe1 {[%emt 0:00:48]} Qa7 {[%emt 0:00:14]} 26. Qf1 {[%emt 0:01:45]} a4 {[%emt 0:01:27]} 27. c3 {[%emt 0:00:16]} Qd7 {[%emt 0:00:12]} 28. Qf2 {[%emt 0:01:19]} Kb7 {[%emt 0:00:29]} 29. Ne2 {[%emt 0:01:24]} Nc7 {[%emt 0:00:43]} 30. Kc2 {[%emt 0:01:49]} Na8 {[%emt 0:02:09]} 31. Kd2 {[%emt 0:01:45]} Nb6 {[%emt 0:00:07]} 32. Ke1 {[%emt 0:00:05]} Nc4 {[%emt 0:00:02]} 33. Bc1 {[%emt 0:00:14]} Rbg8 {[%emt 0:02:25]} 34. Rf3 {[%emt 0:02:30]} Bd8 {[%emt 0:02:27]} 35. Kf1 {[%emt 0:00:49]} f6 {[%emt 0:00:33]} 36. Kg1 {[%emt 0:01:20]} Bb6 {[%emt 0:00:07]} 37. Kh1 {[%emt 0:00:53]} Ka6 {[%emt 0:00:11]} 38. Rf1 {[%emt 0:02:13]} Rf8 {[%emt 0:02:08]} 39. Qe1 {[%emt 0:01:04]} Bd8 {[%emt 0:00:02]} 40. Qf2 {[%emt 0:02:15]} Rf7 {[%emt 0:00:49]} 41. Kg1 {[%emt 0:04:27]} Rhf8 {[%emt 0:00:32]} 42. Kh1 {[%emt 0:01:00]} g5 {[%emt 0:04:03]} 43. fxg5 {[%emt 0:02:01]} fxg5 {[%emt 0:00:10]} 44. Qe1 {[%emt 0:00:36]} Rg7 {[%emt 0:01:20]} 45. Qf2 {[%emt 0:01:05]} f4 {[%emt 0:00:21]} 46. Ng1 {[%emt 0:01:25]} Qf5 {[%emt 0:00:58]} 47. Re1 {[%emt 0:01:08]} Rfg8 {[%emt 0:00:07]} 48. Rf1 {[%emt 0:01:14]} Bb6 {[%emt 0:03:09]} 49. Qe2 {[%emt 0:00:55]} Re8 {[%emt 0:00:20]} 50. Re1 {[%emt 0:01:08]} Nd6 {[%emt 0:00:18]} 51. Qd1 {[%emt 0:02:37]} Ne4 {[%emt 0:00:18]} 52. Kh2 {[%emt 0:02:18]} g4 {[%emt 0:01:37]} 53. hxg4 {[%emt 0:00:24]} Rxg4 {[%emt 0:00:03]} 54. Nh3 {[%emt 0:00:44]} Reg8 {[%emt 0:01:17]} 55. Re2 {[%emt 0:00:44]} Qg6 {[%emt 0:06:37]} 56. Nxf4 {[%emt 0:00:34]} Qh7 {[%emt 0:00:08]} 57. Nh3 {[%emt 0:00:46]} Bc7 {[%emt 0:00:23]} 58. Bf4 {[%emt 0:00:54]} Qg6 {[%emt 0:00:47]} 59. Qc2 {[%emt 0:00:17]} Kb7 {[%emt 0:00:34]} 60. Kg1 {[%emt 0:00:42]} Qh5 {[%emt 0:01:43]} 61. Kh2 {[%emt 0:00:37]} Bd8 {[%emt 0:00:24]} 62. Qd3 {[%emt 0:01:16]} Be7 {[%emt 0:00:56]} 63. Qc2 {[%emt 0:00:20]} Kb6 {[%emt 0:00:03]} 64. Qd3 {[%emt 0:00:15]} Bf8 {[%emt 0:01:47]} 65. Qc2 {[%emt 0:00:58]} Be7 {[%emt 0:01:42]} 66. Qd3 {[%emt 0:00:06]} Rf8 {[%emt 0:00:21]} 67. Bc1 {[%emt 0:01:07]} Rfg8 {[%emt 0:00:22]} 68. Bf4 1/2-1/2

[Event "Botvinnik Cup 2018"]
[Site "Moscow"]
[Date "2018.08.12"]
[Round "5"]
[White "Melkonyan, Arshak"]
[Black "Korotylev, Alexey"]
[Result "1/2-1/2"]
[ECO "A46"]
[WhiteElo "2051"]
[BlackElo "2573"]
[Annotator "ChessBase"]
[PlyCount "91"]
[EventDate "2018.08.10"]
[EventCountry "RUS"]
[SourceTitle "playchess.com"]
[Source "ChessBase"]
[SourceQuality "1"]
[TimeControl "5400+30"]

1. d4 {[%emt 0:00:00]} Nf6 {[%emt 0:00:00]} 2. Nf3 {[%emt 0:00:00]} e6 {[%emt 0:00:05]} 3. e3 {[%emt 0:00:00]} b6 {[%emt 0:00:21]} 4. Bd3 {[%emt 0:00:11]} Bb7 {[%emt 0:00:17]} 5. O-O {[%emt 0:00:29]} d5 {[%emt 0:00:08]} 6. b3 {[%emt 0:00:24]} Bd6 {[%emt 0:00:16]} 7. Bb2 {[%emt 0:00:11]} O-O {[%emt 0:00:31]} 8. Nbd2 {[%emt 0:00:47]} c5 9. c4 {[%emt 0:03:35]} Nbd7 {[%emt 0:03:19]} 10. Qe2 {[%emt 0:00:42]} cxd4 {[%emt 0:05:53]} 11. exd4 {[%emt 0:02:51]} Re8 {[%emt 0:06:15]} 12. Ne5 {[%emt 0:05:26]} Bb4 {[%emt 0:07:24]} 13. a3 {[%emt 0:24:48]} Bxd2 {[%emt 0:04:42]} 14. Qxd2 {[%emt 0:02:10]} dxc4 {[%emt 0:03:19]} 15. Nxc4 {[%emt 0:01:38]} Nf8 {[%emt 0:00:56]} 16. f3 {[%emt 0:01:08]} Ng6 {[%emt 0:00:17]} 17. Rac1 {[%emt 0:02:56]} Re7 {[%emt 0:01:39]} 18. Bxg6 {[%emt 0:02:58]} hxg6 {[%emt 0:00:03]} 19. Ne5 {[%emt 0:00:21]} Nd5 {[%emt 0:03:34]} 20. a4 {[%emt 0:03:06]} Rc8 {[%emt 0:08:04]} 21. Rxc8 {[%emt 0:11:53]} Qxc8 {[%emt 0:00:03]} 22. Rc1 {[%emt 0:00:33]} Rc7 {[%emt 0:00:48]} 23. Kf2 {[%emt 0:03:22]} Rxc1 {[%emt 0:00:16]} 24. Qxc1 {[%emt 0:00:03]} Qe8 {[%emt 0:00:05]} 25. a5 {[%emt 0:04:56]} f6 {[%emt 0:00:08]} 26. Nc4 {[%emt 0:00:23]} g5 {[%emt 0:01:10]} 27. axb6 {[%emt 0:03:08]} axb6 {[%emt 0:00:05]} 28. Nd6 {[%emt 0:05:01]} Qd7 {[%emt 0:03:23]} 29. Ba3 {[%emt 0:01:36]} Nf4 {[%emt 0:00:30]} 30. Qc4 {[%emt 0:03:34]} Kh7 {[%emt 0:09:24]} 31. h3 {[%emt 0:05:39]} Bc6 {[%emt 0:01:18]} 32. Qc2+ {[%emt 0:02:15]} Kg8 {[%emt 0:00:50]} 33. Kg1 {[%emt 0:01:38]} Qa7 {[%emt 0:03:07]} 34. Qxc6 {[%emt 0:01:59]} Qxa3 {[%emt 0:00:12]} 35. Qc8+ {[%emt 0:00:07]} Kh7 {[%emt 0:00:04]} 36. Qc2+ {[%emt 0:00:01]} f5 {[%emt 0:02:26]} 37. Nf7 {[%emt 0:04:29]} Qa1+ {[%emt 0:00:07]} 38. Kh2 {[%emt 0:00:11]} Qf1 {[%emt 0:14:00]} 39. Nxg5+ {[%emt 0:01:55]} Kg6 {[%emt 0:00:03]} 40. Qd2 {[%emt 0:00:12]} Ne2 {[%emt 0:01:13]} 41. Qe3 {[%emt 0:00:10]} f4 {[%emt 0:00:01]} 42. Qxe6+ {[%emt 0:00:08]} Kxg5 {[%emt 0:00:04]} 43. h4+ {[%emt 0:00:18]} Kh5 {[%emt 0:00:02]} 44. Qg4+ {[%emt 0:00:09]} Kh6 {[%emt 0:00:02]} 45. Qg5+ {[%emt 0:00:06]} Kh7 {[%emt 0:00:01]} 46. Qh5+ {[%emt 0:00:01]} 1/2-1/2

[Event "Botvinnik Cup 2018"]
[Site "Moscow"]
[Date "2018.08.12"]
[Round "5"]
[White "Naqopia, Giorgi"]
[Black "Atabayev, Maksat"]
[Result "0-1"]
[ECO "A05"]
[WhiteElo "1857"]
[BlackElo "2505"]
[Annotator "ChessBase"]
[PlyCount "120"]
[EventDate "2018.08.10"]
[EventCountry "RUS"]
[SourceTitle "playchess.com"]
[Source "ChessBase"]
[SourceQuality "1"]
[TimeControl "5400+30"]

1. Nf3 {[%emt 0:00:00]} Nf6 {[%emt 0:00:00]} 2. g3 {[%emt 0:00:09]} b5 {[%emt 0:00:36]} 3. Bg2 {[%emt 0:00:37]} Bb7 {[%emt 0:00:15]} 4. O-O {[%emt 0:00:09]} e6 {[%emt 0:00:18]} 5. d4 {[%emt 0:00:27]} Be7 {[%emt 0:00:25]} 6. b3 {[%emt 0:00:33]} O-O {[%emt 0:00:27]} 7. Bb2 {[%emt 0:00:03]} d5 {[%emt 0:00:30]} 8. Nbd2 {[%emt 0:00:19]} Nbd7 {[%emt 0:00:57]} 9. c4 {[%emt 0:01:20]} bxc4 {[%emt 0:00:13]} 10. bxc4 {[%emt 0:00:05]} c6 {[%emt 0:00:01]} 11. Qc2 {[%emt 0:03:45]} Qa5 {[%emt 0:02:48]} 12. a4 {[%emt 0:09:04]} Ba6 {[%emt 0:00:51]} 13. Bc3 {[%emt 0:07:21]} Qc7 {[%emt 0:01:56]} 14. Rfb1 {[%emt 0:01:53]} Rfc8 {[%emt 0:00:20]} 15. e3 {[%emt 0:17:31]} c5 {[%emt 0:00:28]} 16. dxc5 {[%emt 0:00:14]} Nxc5 {[%emt 0:00:29]} 17. Be5 {[%emt 0:02:33]} Qd8 {[%emt 0:00:40]} 18. Ne1 {[%emt 0:02:30]} Ncd7 {[%emt 0:00:38]} 19. Bc3 {[%emt 0:10:41]} Bxc4 {[%emt 0:02:15]} 20. Nxc4 {[%emt 0:00:27]} Rxc4 {[%emt 0:00:49]} 21. Bf1 {[%emt 0:00:05]} Rcc8 {[%emt 0:00:48]} 22. Ba6 {[%emt 0:01:32]} Rc5 {[%emt 0:03:26]} 23. Qd3 {[%emt 0:13:56]} Ne4 {[%emt 0:02:01]} 24. Bd4 {[%emt 0:00:36]} Rc7 {[%emt 0:00:07]} 25. Qd1 {[%emt 0:02:19]} Bc5 {[%emt 0:01:53]} 26. Rb2 {[%emt 0:01:26]} Bxd4 {[%emt 0:00:25]} 27. Qxd4 {[%emt 0:00:04]} Ndc5 {[%emt 0:00:22]} 28. Be2 {[%emt 0:00:29]} Rac8 {[%emt 0:04:52]} 29. Nf3 {[%emt 0:03:56]} f6 {[%emt 0:02:07]} 30. Rd1 {[%emt 0:00:52]} Qe7 {[%emt 0:00:57]} 31. Kg2 {[%emt 0:08:55]} Nd6 {[%emt 0:02:10]} 32. Rdb1 {[%emt 0:02:20]} Qd7 {[%emt 0:00:41]} 33. Rb4 {[%emt 0:07:20]} Nce4 {[%emt 0:00:34]} 34. Ba6 {[%emt 0:00:38]} Rd8 {[%emt 0:02:35]} 35. Qd3 {[%emt 0:02:40]} Nc5 {[%emt 0:00:27]} 36. Qf1 {[%emt 0:00:26]} Nxa4 {[%emt 0:00:09]} 37. Nd4 {[%emt 0:00:31]} Nc5 {[%emt 0:00:11]} 38. Rb8 {[%emt 0:00:33]} e5 {[%emt 0:00:43]} 39. Rxd8+ {[%emt 0:00:35]} Qxd8 {[%emt 0:00:07]} 40. Nf3 {[%emt 0:00:34]} Nxa6 {[%emt 0:01:50]} 41. Qxa6 {[%emt 0:00:01]} Nc4 {[%emt 0:00:21]} 42. Qe6+ {[%emt 0:00:37]} Kf8 {[%emt 0:00:03]} 43. Rd1 {[%emt 0:00:46]} Nb6 {[%emt 0:00:20]} 44. g4 {[%emt 0:00:35]} Qd7 {[%emt 0:00:11]} 45. Qxd7 {[%emt 0:00:18]} Rxd7 {[%emt 0:00:04]} 46. g5 {[%emt 0:00:02]} Ke7 {[%emt 0:00:08]} 47. gxf6+ {[%emt 0:00:04]} gxf6 {[%emt 0:00:01]} 48. Ra1 {[%emt 0:00:37]} Kd6 {[%emt 0:00:07]} 49. Nh4 {[%emt 0:00:04]} Kc6 {[%emt 0:00:36]} 50. Nf5 {[%emt 0:00:03]} Kb7 {[%emt 0:00:13]} 51. Kf3 {[%emt 0:00:05]} Nc4 {[%emt 0:00:09]} 52. Ra4 {[%emt 0:00:36]} a5 {[%emt 0:00:24]} 53. e4 {[%emt 0:00:18]} Kb6 {[%emt 0:00:36]} 54. exd5 {[%emt 0:00:38]} Kb5 {[%emt 0:00:03]} 55. Ra1 {[%emt 0:00:07]} Rxd5 {[%emt 0:00:04]} 56. Ke4 {[%emt 0:00:03]} Rd2 {[%emt 0:00:04]} 57. Ne3 {[%emt 0:01:03]} Nxe3 {[%emt 0:00:08]} 58. Kxe3 {[%emt 0:00:01]} Rb2 {[%emt 0:00:02]} 59. h4 {[%emt 0:00:15]} a4 {[%emt 0:00:01]} 60. f4 {[%emt 0:00:05]} Rb3+ {[%emt 0:00:02] Kd4} 0-1

[Event "Botvinnik Cup 2018"]
[Site "Moscow"]
[Date "2018.08.12"]
[Round "5"]
[White "Lomaia, Diana"]
[Black "Atabayev, Maksat"]
[Result "0-1"]
[ECO "B33"]
[WhiteElo "1851"]
[BlackElo "2505"]
[Annotator "ChessBase"]
[PlyCount "92"]
[EventDate "2018.08.10"]
[EventCountry "RUS"]
[SourceTitle "playchess.com"]
[Source "ChessBase"]
[SourceQuality "1"]
[TimeControl "5400+30"]

1. e4 {[%emt 0:00:00]} c5 {[%emt 0:00:02]} 2. Nf3 {[%emt 0:00:00]} Nc6 {[%emt 0:01:03]} 3. d4 {[%emt 0:00:11]} cxd4 {[%emt 0:00:06]} 4. Nxd4 {[%emt 0:00:06]} Nf6 {[%emt 0:00:14]} 5. Nxc6 {[%emt 0:03:16]} bxc6 {[%emt 0:00:06]} 6. Bd3 {[%emt 0:00:33]} g6 {[%emt 0:00:12]} 7. O-O {[%emt 0:00:12]} d6 {[%emt 0:00:20]} 8. c4 {[%emt 0:00:13]} Bg7 {[%emt 0:00:16]} 9. Nc3 {[%emt 0:00:42]} O-O {[%emt 0:00:04]} 10. Qe2 {[%emt 0:00:44]} Nd7 {[%emt 0:00:13]} 11. Be3 {[%emt 0:05:51]} Qa5 {[%emt 0:00:44]} 12. Rac1 {[%emt 0:02:22]} Rb8 {[%emt 0:01:40]} 13. a3 {[%emt 0:02:04]} Ne5 {[%emt 0:00:36]} 14. Rc2 {[%emt 0:02:10]} Rb3 {[%emt 0:00:28]} 15. Rd1 {[%emt 0:04:11]} Bg4 {[%emt 0:01:36]} 16. f3 {[%emt 0:00:45]} Be6 {[%emt 0:01:20]} 17. Kh1 {[%emt 0:13:35]} Rfb8 {[%emt 0:00:23]} 18. Bc1 {[%emt 0:01:33]} Nxd3 {[%emt 0:01:22]} 19. Qxd3 {[%emt 0:00:24]} Bxc3 {[%emt 0:02:00]} 20. bxc3 {[%emt 0:07:26]} Qc5 {[%emt 0:00:28]} 21. Qd4 {[%emt 0:02:48]} Qxc4 {[%emt 0:00:45]} 22. Qxa7 {[%emt 0:02:12]} R3b7 {[%emt 0:00:29]} 23. Qe3 {[%emt 0:01:06]} Rb1 {[%emt 0:00:05]} 24. Rcd2 {[%emt 0:02:45]} Ra1 {[%emt 0:00:22]} 25. Rd4 {[%emt 0:02:58]} Qb3 {[%emt 0:00:37]} 26. h3 {[%emt 0:01:13]} c5 {[%emt 0:01:09]} 27. R4d2 {[%emt 0:00:43]} f6 {[%emt 0:00:10]} 28. f4 {[%emt 0:01:39]} Qc4 {[%emt 0:01:12]} 29. Re1 {[%emt 0:07:11]} Rb3 {[%emt 0:01:24]} 30. Rc2 {[%emt 0:03:02]} Rab1 {[%emt 0:03:08]} 31. Kh2 {[%emt 0:01:56]} Rb8 {[%emt 0:00:23]} 32. Rf2 {[%emt 0:00:53]} R1b3 {[%emt 0:00:33]} 33. Rf3 {[%emt 0:00:40]} d5 {[%emt 0:01:18]} 34. exd5 {[%emt 0:01:36]} Bxd5 {[%emt 0:00:10]} 35. Rg3 {[%emt 0:00:40]} e6 {[%emt 0:01:54]} 36. h4 {[%emt 0:00:53]} Kf7 {[%emt 0:00:12]} 37. Kg1 {[%emt 0:03:28]} R3b7 {[%emt 0:01:00]} 38. Rh3 {[%emt 0:07:13]} Rb2 {[%emt 0:01:18]} 39. Bxb2 {[%emt 0:00:54]} Rxb2 {[%emt 0:00:01]} 40. Rg3 {[%emt 0:00:21]} Qa2 {[%emt 0:00:03]} 41. Kf1 {[%emt 0:06:38]} Rxg2 {[%emt 0:00:40]} 42. Re2 {[%emt 0:07:11]} Rxe2 {[%emt 0:00:33]} 43. Qxe2 {[%emt 0:01:11]} Bc4 {[%emt 0:00:00]} 44. Rd3 {[%emt 0:00:49]} Qb1+ {[%emt 0:00:09]} 45. Kf2 {[%emt 0:01:37]} Qxd3 {[%emt 0:00:05]} 46. Qb2 {[%emt 0:00:28]} Qf1+ {[%emt 0:00:12]} 0-1

[Event "Botvinnik Cup 2018"]
[Site "Moscow"]
[Date "2018.08.12"]
[Round "5"]
[White "Grigoryan, Aram"]
[Black "Korotylev, Alexey"]
[Result "1/2-1/2"]
[ECO "E19"]
[WhiteElo "1805"]
[BlackElo "2573"]
[Annotator "ChessBase"]
[PlyCount "56"]
[EventDate "2018.08.10"]
[EventCountry "RUS"]
[SourceTitle "playchess.com"]
[Source "ChessBase"]
[SourceQuality "1"]
[TimeControl "5400+30"]

1. d4 {[%emt 0:00:00]} Nf6 {[%emt 0:00:00]} 2. c4 {[%emt 0:00:03]} e6 {[%emt 0:00:00]} 3. Nf3 {[%emt 0:00:05]} b6 {[%emt 0:00:02]} 4. g3 {[%emt 0:00:04]} Bb7 {[%emt 0:00:22]} 5. Bg2 {[%emt 0:00:25]} Be7 {[%emt 0:00:03]} 6. O-O {[%emt 0:00:11]} O-O {[%emt 0:00:25]} 7. Nc3 {[%emt 0:00:49]} Ne4 {[%emt 0:00:27]} 8. Qc2 {[%emt 0:00:26]} Nxc3 {[%emt 0:00:04]} 9. Qxc3 {[%emt 0:00:01]} c5 {[%emt 0:00:20]} 10. b3 {[%emt 0:01:07]} d6 {[%emt 0:00:34]} 11. Bb2 {[%emt 0:00:08]} Bf6 {[%emt 0:01:43]} 12. Rfd1 {[%emt 0:00:34]} Qe7 {[%emt 0:00:47]} 13. Qc2 {[%emt 0:05:52]} Nc6 {[%emt 0:02:50]} 14. e3 {[%emt 0:00:32]} Rfd8 {[%emt 0:01:42]} 15. Rac1 {[%emt 0:01:49]} a5 {[%emt 0:05:43]} 16. a4 {[%emt 0:03:09]} h6 {[%emt 0:04:16]} 17. Qb1 {[%emt 0:04:43]} Rac8 {[%emt 0:01:11]} 18. Qa1 {[%emt 0:02:11]} Nb4 {[%emt 0:00:34]} 19. Rd2 {[%emt 0:03:48]} Be4 {[%emt 0:00:57]} 20. Ne1 {[%emt 0:04:40]} Bxg2 {[%emt 0:00:10]} 21. Nxg2 {[%emt 0:00:15]} d5 {[%emt 0:17:20]} 22. dxc5 {[%emt 0:05:30]} Bxb2 {[%emt 0:00:52]} 23. Qxb2 {[%emt 0:00:06]} Rxc5 {[%emt 0:00:12]} 24. cxd5 {[%emt 0:01:19]} Rcxd5 {[%emt 0:03:53]} 25. Rxd5 {[%emt 0:03:15]} Rxd5 {[%emt 0:04:18]} 26. Nf4 {[%emt 0:00:18]} Rd8 {[%emt 0:00:38]} 27. Qe5 {[%emt 0:01:36]} Qd6 {[%emt 0:07:04]} 28. Qxd6 {[%emt 0:03:43]} Rxd6 {[%emt 0:00:04]} 1/2-1/2

[Event "Botvinnik Cup 2018"]
[Site "Moscow"]
[Date "2018.08.12"]
[Round "5"]
[White "Igen, Amir"]
[Black "Tologontegin, Semetey"]
[Result "0-1"]
[ECO "E62"]
[WhiteElo "1778"]
[BlackElo "2419"]
[Annotator "NA"]
[PlyCount "82"]
[EventDate "2018.08.10"]
[EventCountry "RUS"]
[SourceTitle "playchess.com"]
[Source "ChessBase"]
[SourceQuality "1"]
[TimeControl "5400+30"]

1. d4 {[%emt 0:00:00]} Nf6 {[%emt 0:00:52]} 2. c4 {[%emt 0:00:29]} d6 {[%emt 0:00:08]} 3. Nc3 {[%emt 0:00:31]} Bf5 {[%emt 0:00:34]} 4. Nf3 {[%emt 0:02:03]} g6 {[%emt 0:00:29]} 5. g3 {[%emt 0:02:21]} Bg7 {[%emt 0:00:17]} 6. Bg2 {[%emt 0:00:43]} c6 {[%emt 0:01:40]} 7. O-O {[%emt 0:00:17]} O-O {[%emt 0:00:28]} 8. Re1 {[%emt 0:02:08]} Ne4 {[%emt 0:02:32]} 9. Nh4 {[%emt 0:01:15]} Nxc3 {[%emt 0:01:01]} 10. bxc3 {[%emt 0:00:09]} Be6 {[%emt 0:01:48]} 11. Qd3 {[%emt 0:06:14]} Qa5 {[%emt 0:01:51]} 12. e4 {[%emt 0:17:46]} Qa4 {[%emt 0:01:48]} 13. d5 {[%emt 0:02:09]} Bc8 {[%emt 0:00:34]} 14. Be3 {[%emt 0:22:02]} Nd7 {[%emt 0:03:48]} 15. f4 {[%emt 0:01:29]} c5 {[%emt 0:10:55]} 16. Nf3 {[%emt 0:07:16]} Nb6 {[%emt 0:00:15]} 17. Nd2 {[%emt 0:01:48]} e6 {[%emt 0:01:33]} 18. Bf2 {[%emt 0:04:37]} e5 {[%emt 0:05:05]} 19. fxe5 {[%emt 0:05:32]} Bxe5 {[%emt 0:00:53]} 20. Nf3 {[%emt 0:01:07]} Nxc4 {[%emt 0:07:31]} 21. Nd2 {[%emt 0:10:18]} Nxd2 {[%emt 0:00:41]} 22. Qxd2 {[%emt 0:00:06]} Bd7 {[%emt 0:00:53]} 23. Be3 {[%emt 0:01:13]} b5 {[%emt 0:01:06]} 24. Bf4 {[%emt 0:00:13]} Rae8 {[%emt 0:01:38]} 25. Rf1 {[%emt 0:01:00]} f6 {[%emt 0:02:58]} 26. Rf2 {[%emt 0:03:43]} g5 {[%emt 0:01:53]} 27. Bxe5 {[%emt 0:00:42]} Rxe5 {[%emt 0:04:22]} 28. Raf1 {[%emt 0:00:18]} Kg7 {[%emt 0:00:17]} 29. h4 {[%emt 0:03:57]} h6 {[%emt 0:00:59]} 30. hxg5 {[%emt 0:00:21]} hxg5 {[%emt 0:00:01]} 31. Qe2 {[%emt 0:01:12]} Qa5 {[%emt 0:10:09]} 32. Qh5 {[%emt 0:00:54]} Qxc3 {[%emt 0:00:45]} 33. Rxf6 {[%emt 0:01:21]} Rxf6 {[%emt 0:01:26]} 34. Rxf6 {[%emt 0:00:36]} Kxf6 {[%emt 0:00:03]} 35. Qh6+ {[%emt 0:00:58]} Ke7 {[%emt 0:00:12]} 36. Qg7+ {[%emt 0:00:20]} Kd8 {[%emt 0:00:23]} 37. Qh8+ {[%emt 0:00:05]} Kc7 {[%emt 0:00:04]} 38. Qa8 {[%emt 0:00:19]} Qd4+ {[%emt 0:00:28]} 39. Kh2 {[%emt 0:00:07]} c4 {[%emt 0:00:03]} 40. Qh8 {[%emt 0:00:55]} Rxe4 {[%emt 0:01:01]} 41. Qh5 {[%emt 0:01:24]} Re8 {[%emt 0:01:03]} 0-1

[Event "Botvinnik Cup 2018"]
[Site "Moscow"]
[Date "2018.08.12"]
[Round "5"]
[White "Degenbaev, Aziz"]
[Black "Khusnutdinov, Rustam"]
[Result "1/2-1/2"]
[ECO "B47"]
[WhiteElo "1688"]
[BlackElo "2470"]
[Annotator "ChessBase"]
[PlyCount "83"]
[EventDate "2018.08.10"]
[EventCountry "RUS"]
[SourceTitle "playchess.com"]
[Source "ChessBase"]
[SourceQuality "1"]
[TimeControl "5400+30"]

1. e4 {[%emt 0:00:00]} c5 {[%emt 0:00:00]} 2. Nf3 {[%emt 0:00:06]} e6 {[%emt 0:00:00]} 3. d4 {[%emt 0:00:25]} cxd4 {[%emt 0:00:00]} 4. Nxd4 {[%emt 0:00:14]} Nc6 {[%emt 0:00:00]} 5. Nc3 {[%emt 0:01:37]} Qc7 {[%emt 0:00:00]} 6. Be2 {[%emt 0:03:21]} a6 {[%emt 0:00:24]} 7. f4 {[%emt 0:02:31]} Nxd4 {[%emt 0:02:41]} 8. Qxd4 {[%emt 0:00:18]} b5 {[%emt 0:00:02]} 9. a3 {[%emt 0:01:09]} Bb7 {[%emt 0:00:20]} 10. Be3 {[%emt 0:08:13]} Rc8 {[%emt 0:00:07]} 11. O-O {[%emt 0:02:57]} d6 {[%emt 0:08:06]} 12. f5 {[%emt 0:16:13]} e5 {[%emt 0:02:08]} 13. Qd3 {[%emt 0:00:18]} Nf6 {[%emt 0:00:24]} 14. Bf3 {[%emt 0:03:15]} h6 {[%emt 0:00:09]} 15. Rf2 {[%emt 0:05:54]} Be7 {[%emt 0:00:12]} 16. g4 {[%emt 0:02:07]} Qc4 {[%emt 0:01:23]} 17. Rg2 {[%emt 0:11:04]} Qxd3 {[%emt 0:02:51]} 18. cxd3 {[%emt 0:00:57]} Nd7 {[%emt 0:00:01]} 19. Rd1 {[%emt 0:03:52]} Bd8 {[%emt 0:03:31]} 20. g5 {[%emt 0:07:45]} hxg5 {[%emt 0:09:37]} 21. Bxg5 {[%emt 0:00:16]} Bxg5 {[%emt 0:00:01]} 22. Rxg5 {[%emt 0:00:01]} Kf8 {[%emt 0:00:01]} 23. Kh1 {[%emt 0:02:06]} Rh7 {[%emt 0:01:16]} 24. Rdg1 {[%emt 0:03:07]} Nc5 {[%emt 0:00:17]} 25. Be2 {[%emt 0:00:18]} Nb3 {[%emt 0:00:07]} 26. f6 {[%emt 0:12:23]} g6 {[%emt 0:00:02]} 27. R5g3 {[%emt 0:00:58]} Nd4 {[%emt 0:00:25]} 28. Bg4 {[%emt 0:00:23]} Rc5 {[%emt 0:00:33]} 29. Rc1 {[%emt 0:05:40]} Ke8 {[%emt 0:00:13]} 30. Rgg1 {[%emt 0:00:21]} Kd8 {[%emt 0:00:15]} 31. b4 {[%emt 0:00:35]} Rc7 {[%emt 0:00:06]} 32. Nd5 {[%emt 0:00:44]} Bxd5 {[%emt 0:01:21]} 33. exd5 {[%emt 0:00:02]} Rh8 {[%emt 0:06:40]} 34. h3 {[%emt 0:01:37]} Re8 {[%emt 0:00:53]} 35. Rxc7 {[%emt 0:03:00]} Kxc7 {[%emt 0:00:12]} 36. Rc1+ {[%emt 0:00:16]} Kb7 {[%emt 0:00:25]} 37. Bd7 {[%emt 0:00:11]} Rd8 {[%emt 0:00:18]} 38. Bg4 {[%emt 0:01:36]} Re8 {[%emt 0:20:03]} 39. Bd7 {[%emt 0:00:06]} Rd8 {[%emt 0:00:21]} 40. Bg4 {[%emt 0:00:01]} Re8 {[%emt 0:07:23]} 41. Bd7 {[%emt 0:00:01]} Rd8 {[%emt 0:00:01]} 42. Bg4 {[%emt 0:00:01]} 1/2-1/2

[Event "Botvinnik Cup 2018"]
[Site "Moscow"]
[Date "2018.08.12"]
[Round "5"]
[White "Kuliyev, Emin"]
[Black "Paichadze, Luka"]
[Result "0-1"]
[ECO "A17"]
[WhiteElo "1641"]
[BlackElo "2564"]
[Annotator "RC"]
[PlyCount "62"]
[EventDate "2018.08.10"]
[EventCountry "RUS"]
[SourceTitle "playchess.com"]
[Source "ChessBase"]
[SourceQuality "1"]
[TimeControl "5400+30"]

1. c4 {[%emt 0:00:00]} Nf6 {[%emt 0:00:00]} 2. Nc3 {[%emt 0:00:00]} e6 {[%emt 0:00:22]} 3. Nf3 {[%emt 0:01:44]} Bb4 {[%emt 0:00:12]} 4. d4 {[%emt 0:06:18]} b6 {[%emt 0:03:14]} 5. e3 {[%emt 0:01:46]} Bb7 {[%emt 0:00:42]} 6. Bd3 {[%emt 0:02:23]} O-O {[%emt 0:00:28]} 7. O-O {[%emt 0:03:18]} d5 {[%emt 0:00:23]} 8. Bd2 {[%emt 0:02:03]} Be7 {[%emt 0:00:22]} 9. Qe2 {[%emt 0:03:26]} c5 {[%emt 0:01:09]} 10. Rfd1 {[%emt 0:12:52]} Nbd7 {[%emt 0:01:09]} 11. Be1 {[%emt 0:04:02]} cxd4 {[%emt 0:03:11]} 12. exd4 {[%emt 0:04:31]} dxc4 {[%emt 0:01:32]} 13. Bxc4 {[%emt 0:00:14]} Nd5 {[%emt 0:00:07]} 14. Nxd5 {[%emt 0:02:32]} exd5 {[%emt 0:00:22]} 15. Bb3 {[%emt 0:12:07]} Re8 {[%emt 0:01:58]} 16. Qd3 {[%emt 0:04:28]} Bd6 {[%emt 0:01:59]} 17. Bc3 {[%emt 0:01:07]} Nf6 {[%emt 0:01:58]} 18. Ne5 {[%emt 0:15:12]} Ne4 {[%emt 0:00:55]} 19. Re1 {[%emt 0:00:27]} Qf6 {[%emt 0:10:35]} 20. f3 {[%emt 0:02:30]} Nxc3 {[%emt 0:01:10]} 21. Qxc3 {[%emt 0:01:19]} Rac8 {[%emt 0:00:45]} 22. Qe3 {[%emt 0:04:45]} Qf5 {[%emt 0:04:05]} 23. g4 {[%emt 0:04:34]} Qe6 {[%emt 0:02:30]} 24. Ba4 {[%emt 0:05:53]} Re7 {[%emt 0:00:54]} 25. Qd2 {[%emt 0:02:36]} Qf6 {[%emt 0:01:47]} 26. Bd7 {[%emt 0:01:19]} Bxe5 {[%emt 0:04:38]} 27. dxe5 {[%emt 0:00:46]} Qxf3 {[%emt 0:00:12]} 28. Bxc8 {[%emt 0:01:03]} Bxc8 {[%emt 0:00:05]} 29. Qg2 {[%emt 0:00:41]} Bxg4 {[%emt 0:00:21]} 30. Rad1 {[%emt 0:00:30]} Qxg2+ {[%emt 0:00:37]} 31. Kxg2 {[%emt 0:00:19]} Bxd1 {[%emt 0:01:15]} 0-1